[Event "Late-Titled-Tuesday-Blitz-June-04-2024"]
[Site "Chess.com"]
[Date "2024.06.04"]
[Round "4"]
[White "Statham_01"]
[Black "WPWPWP-2015"]
[Result "1-0"]
[WhiteElo "2715"]
[BlackElo "2521"]
[TimeControl "180+1"]
[EndTime "14:41:05 PDT"]
[Termination "Statham_01 won by checkmate"]

1. e4 {[%clk 0:03:00.9]} 1... c5 {[%clk 0:02:57.7]} 2. a3 {[%clk 0:03:00.9]}
2... e5 {[%clk 0:02:56.6]} 3. Nf3 {[%clk 0:03:00.5]} 3... Nc6 {[%clk 0:02:56.5]}
4. Bc4 {[%clk 0:03:00.6]} 4... Be7 {[%clk 0:02:54.8]} 5. d3 {[%clk 0:03:00.7]}
5... d6 {[%clk 0:02:53.3]} 6. h3 {[%clk 0:03:00.2]} 6... Be6 {[%clk 0:02:52.4]}
7. Nbd2 {[%clk 0:02:55.6]} 7... Nf6 {[%clk 0:02:51.6]} 8. O-O {[%clk 0:02:54.3]}
8... h6 {[%clk 0:02:51]} 9. Re1 {[%clk 0:02:54.7]} 9... O-O {[%clk 0:02:49]} 10.
Nf1 {[%clk 0:02:54.2]} 10... Nd4 {[%clk 0:02:37.9]} 11. c3 {[%clk 0:02:50.5]}
11... Nxf3+ {[%clk 0:02:32.5]} 12. Qxf3 {[%clk 0:02:51.4]} 12... Qd7 {[%clk
0:02:31.1]} 13. Ne3 {[%clk 0:02:43.8]} 13... Bxc4 {[%clk 0:02:24.5]} 14. dxc4
{[%clk 0:02:42.4]} 14... Rfe8 {[%clk 0:02:22.7]} 15. Nf5 {[%clk 0:02:40.1]}
15... Qe6 {[%clk 0:02:21.7]} 16. Bxh6 {[%clk 0:02:31.7]} 16... Bf8 {[%clk
0:01:41.6]} 17. Bg5 {[%clk 0:02:29.2]} 17... Nh7 {[%clk 0:01:34.4]} 18. h4
{[%clk 0:02:14]} 18... Qxc4 {[%clk 0:01:29.8]} 19. Rad1 {[%clk 0:02:13.9]} 19...
Nxg5 {[%clk 0:01:22.5]} 20. hxg5 {[%clk 0:02:13.6]} 20... Qe6 {[%clk 0:01:22.5]}
21. Rd5 {[%clk 0:02:08.9]} 21... Qg6 {[%clk 0:01:18.3]} 22. Qg3 {[%clk
0:02:02.5]} 22... Re6 {[%clk 0:01:16.3]} 23. Red1 {[%clk 0:01:59]} 23... Rae8
{[%clk 0:01:09.3]} 24. c4 {[%clk 0:01:51.8]} 24... b6 {[%clk 0:00:55.7]} 25. f3
{[%clk 0:01:51.6]} 25... Rd8 {[%clk 0:00:53.8]} 26. Kf2 {[%clk 0:01:51.2]} 26...
Be7 {[%clk 0:00:49.1]} 27. Nxe7+ {[%clk 0:01:16.2]} 27... Rxe7 {[%clk
0:00:49.3]} 28. Rh1 {[%clk 0:01:15.1]} 28... Re6 {[%clk 0:00:45]} 29. Qh4 {[%clk
0:01:11.3]} 29... Kf8 {[%clk 0:00:44.7]} 30. b4 {[%clk 0:01:03.3]} 30... Ke7
{[%clk 0:00:37.8]} 31. bxc5 {[%clk 0:01:00.7]} 31... dxc5 {[%clk 0:00:36.7]} 32.
Rxd8 {[%clk 0:00:48.4]} 32... Kxd8 {[%clk 0:00:36.3]} 33. Qh8+ {[%clk
0:00:48.4]} 33... Ke7 {[%clk 0:00:29.9]} 34. Qb8 {[%clk 0:00:19.5]} 34... Qxg5
{[%clk 0:00:22.7]} 35. Rd1 {[%clk 0:00:19.7]} 35... Kf6 {[%clk 0:00:20.2]} 36.
Qc7 {[%clk 0:00:19]} 36... Qh4+ {[%clk 0:00:16.6]} 37. Kg1 {[%clk 0:00:17.8]}
37... Kg6 {[%clk 0:00:14.8]} 38. Qxa7 {[%clk 0:00:15]} 38... Rf6 {[%clk
0:00:08.8]} 39. Qd7 {[%clk 0:00:14.8]} 39... Qg3 {[%clk 0:00:07.1]} 40. Qd3
{[%clk 0:00:11.1]} 40... Qg5 {[%clk 0:00:06.1]} 41. a4 {[%clk 0:00:09.6]} 41...
Re6 {[%clk 0:00:05.7]} 42. Kf2 {[%clk 0:00:07.5]} 42... Qh4+ {[%clk 0:00:05.1]}
43. Kf1 {[%clk 0:00:07.7]} 43... Rf6 {[%clk 0:00:04.6]} 44. Ke2 {[%clk
0:00:06.8]} 44... Qg3 {[%clk 0:00:04.2]} 45. Kf1 {[%clk 0:00:05.6]} 45... Qh4
{[%clk 0:00:03.5]} 46. Qe2 {[%clk 0:00:05]} 46... Qh1+ {[%clk 0:00:01.9]} 47.
Kf2 {[%clk 0:00:05.6]} 47... Qh4+ {[%clk 0:00:02]} 48. Kg1 {[%clk 0:00:05.7]}
48... Re6 {[%clk 0:00:01.4]} 49. Rf1 {[%clk 0:00:06.2]} 49... Qg5 {[%clk
0:00:01.8]} 50. Qf2 {[%clk 0:00:05.9]} 50... Rf6 {[%clk 0:00:02.3]} 51. g3
{[%clk 0:00:06.1]} 51... Kh7 {[%clk 0:00:02.1]} 52. Kg2 {[%clk 0:00:06.7]} 52...
Kg8 {[%clk 0:00:02.5]} 53. Rd1 {[%clk 0:00:04.8]} 53... Rg6 {[%clk 0:00:02.6]}
54. Rd8+ {[%clk 0:00:05.3]} 54... Kh7 {[%clk 0:00:03]} 55. g4 {[%clk 0:00:06]}
55... Qxd8 {[%clk 0:00:02.9]} 56. Kf1 {[%clk 0:00:03.4]} 56... Qg5 {[%clk
0:00:03.1]} 57. Qh2+ {[%clk 0:00:03.9]} 57... Rh6 {[%clk 0:00:03.7]} 58. Qg2
{[%clk 0:00:04.6]} 58... Qf6 {[%clk 0:00:04]} 59. g5 {[%clk 0:00:03.7]} 59...
Qc6 {[%clk 0:00:02.8]} 60. gxh6 {[%clk 0:00:03.7]} 60... Qxh6 {[%clk 0:00:03.5]}
61. Qg4 {[%clk 0:00:03.7]} 61... Qc1+ {[%clk 0:00:03.4]} 62. Kg2 {[%clk
0:00:04]} 62... Qd2+ {[%clk 0:00:03.6]} 63. Kf1 {[%clk 0:00:03.4]} 63... g6
{[%clk 0:00:03.5]} 64. Qc8 {[%clk 0:00:03.1]} 64... Kg7 {[%clk 0:00:03.6]} 65.
Qb8 {[%clk 0:00:03]} 65... Qc1+ {[%clk 0:00:03.9]} 66. Kg2 {[%clk 0:00:03.2]}
66... Qb2+ {[%clk 0:00:04.2]} 67. Kg3 {[%clk 0:00:03.1]} 67... Qd4 {[%clk
0:00:03.4]} 68. Qxb6 {[%clk 0:00:02.8]} 68... Qg1+ {[%clk 0:00:03.4]} 69. Kh3
{[%clk 0:00:02.9]} 69... Kh6 {[%clk 0:00:03.4]} 70. Qd8 {[%clk 0:00:02.4]} 70...
Qh1+ {[%clk 0:00:03.3]} 71. Kg3 {[%clk 0:00:02.7]} 71... Qg1+ {[%clk 0:00:03.6]}
72. Kh3 {[%clk 0:00:03.3]} 72... Kg7 {[%clk 0:00:04]} 73. Qh4 {[%clk 0:00:02.7]}
73... Qf1+ {[%clk 0:00:04.1]} 74. Kg3 {[%clk 0:00:02.7]} 74... Qxc4 {[%clk
0:00:04.6]} 75. Qh2 {[%clk 0:00:02.2]} 75... Qc3 {[%clk 0:00:04.5]} 76. Qf2
{[%clk 0:00:02]} 76... Qb4 {[%clk 0:00:04.3]} 77. Qc2 {[%clk 0:00:02.2]} 77...
Qe1+ {[%clk 0:00:04]} 78. Kg2 {[%clk 0:00:02.2]} 78... Qb4 {[%clk 0:00:03.8]}
79. Qa2 {[%clk 0:00:02.8]} 79... c4 {[%clk 0:00:04]} 80. a5 {[%clk 0:00:02.9]}
80... Qb7 {[%clk 0:00:03.9]} 81. a6 {[%clk 0:00:03.1]} 81... Qa7 {[%clk
0:00:04.3]} 82. Qxc4 {[%clk 0:00:03.8]} 82... g5 {[%clk 0:00:04.3]} 83. Qb5
{[%clk 0:00:04.2]} 83... Kf6 {[%clk 0:00:03.8]} 84. Qb7 {[%clk 0:00:04.3]} 84...
Qd4 {[%clk 0:00:03.6]} 85. Qc6+ {[%clk 0:00:04.7]} 85... Kg7 {[%clk 0:00:03.4]}
86. Qc2 {[%clk 0:00:05.2]} 86... Qb6 {[%clk 0:00:03]} 87. Qa2 {[%clk 0:00:05.3]}
87... Qa7 {[%clk 0:00:03.4]} 88. Kg3 {[%clk 0:00:05.7]} 88... Kg6 {[%clk
0:00:03.4]} 89. Kg2 {[%clk 0:00:06.3]} 89... Kh5 {[%clk 0:00:02.2]} 90. Kf1
{[%clk 0:00:06.4]} 90... Kg6 {[%clk 0:00:02.2]} 91. Ke2 {[%clk 0:00:06.9]} 91...
Kh5 {[%clk 0:00:02.1]} 92. Qa4 {[%clk 0:00:06.6]} 92... Kg6 {[%clk 0:00:01.9]}
93. Kd3 {[%clk 0:00:06.7]} 93... Qd7+ {[%clk 0:00:01.1]} 94. Qxd7 {[%clk
0:00:06.5]} 94... g4 {[%clk 0:00:01.2]} 95. Qf5+ {[%clk 0:00:06.7]} 95... Kg7
{[%clk 0:00:01.4]} 96. a7 {[%clk 0:00:07.6]} 96... g3 {[%clk 0:00:01.2]} 97.
a8=Q {[%clk 0:00:08.2]} 97... g2 {[%clk 0:00:01.2]} 98. Qg5+ {[%clk 0:00:08.8]}
98... Kh7 {[%clk 0:00:01.4]} 99. Qag8# {[%clk 0:00:09.4]} 1-0

[Event "Late-Titled-Tuesday-Blitz-June-04-2024"]
[Site "Chess.com"]
[Date "2024.06.04"]
[Round "5"]
[White "LeninGuerra"]
[Black "Rodalquilar"]
[Result "0-1"]
[WhiteElo "2544"]
[BlackElo "2790"]
[TimeControl "180+1"]
[EndTime "14:49:23 PDT"]
[Termination "Rodalquilar won by resignation"]

1. e4 {[%clk 0:03:00]} 1... d5 {[%clk 0:03:00.3]} 2. exd5 {[%clk 0:02:59.7]}
2... Qxd5 {[%clk 0:03:01.2]} 3. d4 {[%clk 0:02:59.2]} 3... Nc6 {[%clk
0:03:00.9]} 4. Nf3 {[%clk 0:02:59.3]} 4... Bg4 {[%clk 0:03:01]} 5. Be2 {[%clk
0:02:59.1]} 5... O-O-O {[%clk 0:03:01.2]} 6. Be3 {[%clk 0:02:59.5]} 6... e5
{[%clk 0:02:56.1]} 7. c4 {[%clk 0:02:56.4]} 7... Qa5+ {[%clk 0:02:56]} 8. Bd2
{[%clk 0:02:55.8]} 8... Bb4 {[%clk 0:02:55.4]} 9. d5 {[%clk 0:02:55.2]} 9...
Bxf3 {[%clk 0:02:48.8]} 10. Bxf3 {[%clk 0:02:51.8]} 10... Nd4 {[%clk 0:02:49.1]}
11. Nc3 {[%clk 0:02:37.3]} 11... Qa6 {[%clk 0:02:49]} 12. Qb3 {[%clk 0:02:22.2]}
12... Nxb3 {[%clk 0:02:47.1]} 0-1

[Event "Late-Titled-Tuesday-Blitz-June-04-2024"]
[Site "Chess.com"]
[Date "2024.06.04"]
[Round "5"]
[White "kingofthenil"]
[Black "merinasian"]
[Result "1-0"]
[WhiteElo "2880"]
[BlackElo "2484"]
[TimeControl "180+1"]
[EndTime "14:50:19 PDT"]
[Termination "kingofthenil won by resignation"]

1. d4 {[%clk 0:02:59.4]} 1... Nf6 {[%clk 0:02:58.6]} 2. c4 {[%clk 0:02:59.7]}
2... e6 {[%clk 0:02:58.7]} 3. Nf3 {[%clk 0:02:59.8]} 3... Bb4+ {[%clk
0:02:58.1]} 4. Nbd2 {[%clk 0:02:59.2]} 4... b6 {[%clk 0:02:57.8]} 5. a3 {[%clk
0:02:59]} 5... Bxd2+ {[%clk 0:02:57.3]} 6. Bxd2 {[%clk 0:02:59.9]} 6... Bb7
{[%clk 0:02:57.3]} 7. Bg5 {[%clk 0:02:57.4]} 7... O-O {[%clk 0:02:56.8]} 8. e3
{[%clk 0:02:57.5]} 8... h6 {[%clk 0:02:56.5]} 9. Bh4 {[%clk 0:02:57.6]} 9... d6
{[%clk 0:02:54.7]} 10. Bd3 {[%clk 0:02:55.1]} 10... Nbd7 {[%clk 0:02:54.5]} 11.
Qc2 {[%clk 0:02:52.8]} 11... c5 {[%clk 0:02:53]} 12. O-O-O {[%clk 0:02:49.4]}
12... cxd4 {[%clk 0:02:50.7]} 13. Nxd4 {[%clk 0:02:47.9]} 13... Rc8 {[%clk
0:02:47.4]} 14. Rhg1 {[%clk 0:02:40.4]} 14... Ne5 {[%clk 0:02:46.3]} 15. Kb1
{[%clk 0:02:32.2]} 15... Nxd3 {[%clk 0:02:45.6]} 16. Qxd3 {[%clk 0:02:32]} 16...
Be4 {[%clk 0:02:44.9]} 17. Qxe4 {[%clk 0:02:32.3]} 17... Nxe4 {[%clk 0:02:44.4]}
18. Bxd8 {[%clk 0:02:33.2]} 18... Rfxd8 {[%clk 0:02:44.4]} 19. f3 {[%clk
0:02:30.4]} 19... Nf6 {[%clk 0:02:43]} 20. Rc1 {[%clk 0:02:24.7]} 20... a6
{[%clk 0:02:21.8]} 21. e4 {[%clk 0:02:23.9]} 21... d5 {[%clk 0:02:20.1]} 22.
cxd5 {[%clk 0:02:22.8]} 22... exd5 {[%clk 0:02:19.9]} 23. e5 {[%clk 0:02:23.3]}
23... Nd7 {[%clk 0:02:19]} 24. Nc6 {[%clk 0:02:22.5]} 24... Re8 {[%clk
0:02:18.1]} 25. Ne7+ {[%clk 0:02:22.6]} 25... Rxe7 {[%clk 0:02:15.6]} 26. Rxc8+
{[%clk 0:02:23.5]} 26... Kh7 {[%clk 0:02:15.3]} 27. Rc7 {[%clk 0:02:24.2]} 1-0

[Event "Late-Titled-Tuesday-Blitz-June-04-2024"]
[Site "Chess.com"]
[Date "2024.06.04"]
[Round "5"]
[White "SoCalJuniorChess"]
[Black "meme0105"]
[Result "1-0"]
[WhiteElo "2208"]
[BlackElo "1587"]
[TimeControl "180+1"]
[EndTime "14:50:30 PDT"]
[Termination "SoCalJuniorChess won by resignation"]

1. d4 {[%clk 0:03:00.9]} 1... Nf6 {[%clk 0:02:59.7]} 2. Nc3 {[%clk 0:03:00.9]}
2... g6 {[%clk 0:03:00.2]} 3. Bf4 {[%clk 0:03:00.6]} 3... d6 {[%clk 0:03:00.4]}
4. e3 {[%clk 0:02:59.5]} 4... Bg7 {[%clk 0:03:00.8]} 5. h4 {[%clk 0:02:59.2]}
5... Bd7 {[%clk 0:02:53.1]} 6. h5 {[%clk 0:02:58.4]} 6... Nxh5 {[%clk
0:02:48.1]} 7. Rxh5 {[%clk 0:02:57.8]} 7... gxh5 {[%clk 0:02:48.1]} 8. Qxh5
{[%clk 0:02:58.7]} 8... e5 {[%clk 0:02:47.7]} 9. Bh6 {[%clk 0:02:57.3]} 9... Qf6
{[%clk 0:02:44.5]} 10. Bxg7 {[%clk 0:02:55.7]} 10... Qxg7 {[%clk 0:02:45.4]} 11.
Nd5 {[%clk 0:02:53.9]} 11... Na6 {[%clk 0:02:35.7]} 12. Bxa6 {[%clk 0:02:52.7]}
12... O-O {[%clk 0:02:28]} 13. Bd3 {[%clk 0:02:38]} 13... exd4 {[%clk
0:02:24.9]} 14. Nf6+ {[%clk 0:02:32.6]} 14... Kh8 {[%clk 0:02:21.9]} 15. Nxh7
{[%clk 0:01:52.9]} 15... Bg4 {[%clk 0:02:21.5]} 16. Qh4 {[%clk 0:01:53.2]} 16...
dxe3 {[%clk 0:02:15]} 17. Nf6+ {[%clk 0:01:52.5]} 1-0

[Event "Late-Titled-Tuesday-Blitz-June-04-2024"]
[Site "Chess.com"]
[Date "2024.06.04"]
[Round "5"]
[White "krzyzan94"]
[Black "Tunahan_Makaraci"]
[Result "1-0"]
[WhiteElo "2799"]
[BlackElo "2569"]
[TimeControl "180+1"]
[EndTime "14:51:04 PDT"]
[Termination "krzyzan94 won by resignation"]

1. e4 {[%clk 0:03:00.9]} 1... c5 {[%clk 0:03:00.3]} 2. Nf3 {[%clk 0:03:00]} 2...
Nc6 {[%clk 0:03:00.5]} 3. d4 {[%clk 0:02:58.9]} 3... cxd4 {[%clk 0:03:00.8]} 4.
Nxd4 {[%clk 0:02:59.8]} 4... g6 {[%clk 0:03:00.9]} 5. c4 {[%clk 0:02:59.4]} 5...
Bg7 {[%clk 0:03:01.1]} 6. Be3 {[%clk 0:02:59.2]} 6... Qb6 {[%clk 0:03:01.7]} 7.
Nb5 {[%clk 0:02:52.7]} 7... Qa5+ {[%clk 0:03:01.1]} 8. N5c3 {[%clk 0:02:50.1]}
8... Nf6 {[%clk 0:02:56.8]} 9. Nd2 {[%clk 0:02:49.3]} 9... O-O {[%clk
0:02:52.3]} 10. Nb3 {[%clk 0:02:41.9]} 10... Qd8 {[%clk 0:02:50.9]} 11. Be2
{[%clk 0:02:39.7]} 11... d6 {[%clk 0:02:51]} 12. O-O {[%clk 0:02:39.7]} 12... a5
{[%clk 0:02:51.3]} 13. Rc1 {[%clk 0:02:36]} 13... a4 {[%clk 0:02:51.1]} 14. Nd4
{[%clk 0:02:36.3]} 14... Nxd4 {[%clk 0:02:50.9]} 15. Bxd4 {[%clk 0:02:37.2]}
15... Qa5 {[%clk 0:02:50]} 16. Kh1 {[%clk 0:02:36.4]} 16... Be6 {[%clk
0:02:49.9]} 17. f4 {[%clk 0:02:36]} 17... Rfc8 {[%clk 0:02:49.1]} 18. b3 {[%clk
0:02:19.7]} 18... axb3 {[%clk 0:02:48.7]} 19. axb3 {[%clk 0:02:20.6]} 19... Nd7
{[%clk 0:02:18]} 20. f5 {[%clk 0:02:19.3]} 20... gxf5 {[%clk 0:02:16.6]} 21.
exf5 {[%clk 0:02:17.4]} 21... Bxf5 {[%clk 0:02:13.7]} 22. b4 {[%clk 0:01:53.7]}
22... Qxb4 {[%clk 0:02:01.7]} 23. Nd5 {[%clk 0:01:46.5]} 1-0

[Event "Late-Titled-Tuesday-Blitz-June-04-2024"]
[Site "Chess.com"]
[Date "2024.06.04"]
[Round "5"]
[White "KVAIDAN"]
[Black "arnoldpetra"]
[Result "1-0"]
[WhiteElo "2359"]
[BlackElo "2485"]
[TimeControl "180+1"]
[EndTime "14:51:26 PDT"]
[Termination "KVAIDAN won by checkmate"]

1. f4 {[%clk 0:02:59.6]} 1... d6 {[%clk 0:03:00.1]} 2. Nf3 {[%clk 0:03:00.5]}
2... c6 {[%clk 0:03:00.2]} 3. e4 {[%clk 0:02:59.4]} 3... g6 {[%clk 0:03:01.1]}
4. Be2 {[%clk 0:02:58.9]} 4... Bg7 {[%clk 0:03:01.4]} 5. O-O {[%clk 0:02:59.5]}
5... Bg4 {[%clk 0:03:00.7]} 6. d3 {[%clk 0:02:59.8]} 6... Nd7 {[%clk 0:03:00]}
7. Nc3 {[%clk 0:03:00.7]} 7... Ngf6 {[%clk 0:02:58.4]} 8. Qe1 {[%clk 0:03:01]}
8... O-O {[%clk 0:02:57.9]} 9. Qg3 {[%clk 0:03:01.5]} 9... Bxf3 {[%clk
0:02:51.8]} 10. Bxf3 {[%clk 0:03:01.2]} 10... e6 {[%clk 0:02:52.3]} 11. Qh4
{[%clk 0:03:00.5]} 11... Ne8 {[%clk 0:02:45.2]} 12. Qh3 {[%clk 0:03:00.2]} 12...
b5 {[%clk 0:02:43.3]} 13. f5 {[%clk 0:02:59]} 13... exf5 {[%clk 0:02:42.3]} 14.
exf5 {[%clk 0:02:59]} 14... Ne5 {[%clk 0:02:42.3]} 15. fxg6 {[%clk 0:02:56.1]}
15... hxg6 {[%clk 0:02:37.6]} 16. Ne4 {[%clk 0:02:53.4]} 16... Nxf3+ {[%clk
0:02:33.2]} 17. Rxf3 {[%clk 0:02:52.8]} 17... d5 {[%clk 0:02:33]} 18. Ng5 {[%clk
0:02:51.8]} 18... Bd4+ {[%clk 0:01:34]} 19. Kh1 {[%clk 0:02:50.9]} 19... Nf6
{[%clk 0:01:31.4]} 20. Rxf6 {[%clk 0:02:50.1]} 20... Kg7 {[%clk 0:01:31.9]} 21.
Rf4 {[%clk 0:02:41.6]} 21... Rh8 {[%clk 0:01:28.4]} 22. Rxf7+ {[%clk 0:02:38.6]}
22... Kg8 {[%clk 0:01:28.1]} 23. Qe6 {[%clk 0:02:34.4]} 23... Qb8 {[%clk
0:01:00.6]} 24. Rf8+ {[%clk 0:02:30.3]} 24... Kxf8 {[%clk 0:00:58.6]} 25. Qf7#
{[%clk 0:02:30.7]} 1-0

[Event "Late-Titled-Tuesday-Blitz-June-04-2024"]
[Site "Chess.com"]
[Date "2024.06.04"]
[Round "5"]
[White "joksijoksi"]
[Black "Alphafischer2019"]
[Result "0-1"]
[WhiteElo "2459"]
[BlackElo "2633"]
[TimeControl "180+1"]
[EndTime "14:51:28 PDT"]
[Termination "Alphafischer2019 won by resignation"]

1. d4 {[%clk 0:02:58.9]} 1... Nf6 {[%clk 0:02:59.1]} 2. c4 {[%clk 0:02:59.2]}
2... b6 {[%clk 0:02:57]} 3. Nf3 {[%clk 0:02:55.6]} 3... Bb7 {[%clk 0:02:56.1]}
4. e3 {[%clk 0:02:55.4]} 4... e6 {[%clk 0:02:52.2]} 5. a3 {[%clk 0:02:54.7]}
5... Be7 {[%clk 0:02:51.7]} 6. Nc3 {[%clk 0:02:52.9]} 6... d5 {[%clk 0:02:52.1]}
7. cxd5 {[%clk 0:02:50]} 7... exd5 {[%clk 0:02:51.9]} 8. Bd3 {[%clk 0:02:50.5]}
8... O-O {[%clk 0:02:51.7]} 9. O-O {[%clk 0:02:51]} 9... Nbd7 {[%clk 0:02:51.4]}
10. Ne5 {[%clk 0:02:50.9]} 10... Bd6 {[%clk 0:02:39.6]} 11. f4 {[%clk
0:02:49.6]} 11... c5 {[%clk 0:02:40.1]} 12. Bd2 {[%clk 0:02:48.8]} 12... Rc8
{[%clk 0:02:38.6]} 13. Be1 {[%clk 0:02:46.9]} 13... Ne4 {[%clk 0:02:22.4]} 14.
Nxe4 {[%clk 0:02:35.6]} 14... dxe4 {[%clk 0:02:20.1]} 15. Bb5 {[%clk 0:02:34.2]}
15... Nf6 {[%clk 0:02:19.1]} 16. Bh4 {[%clk 0:02:31.3]} 16... cxd4 {[%clk
0:02:17.8]} 17. Bxf6 {[%clk 0:02:27.3]} 17... Qxf6 {[%clk 0:02:14.5]} 18. Nd7
{[%clk 0:02:16.1]} 18... Qf5 {[%clk 0:02:14.3]} 19. Nxf8 {[%clk 0:02:04.3]}
19... Qxb5 {[%clk 0:02:13]} 20. Nxh7 {[%clk 0:02:00]} 20... Kxh7 {[%clk
0:02:11.5]} 21. Qxd4 {[%clk 0:02:00.2]} 21... Bc5 {[%clk 0:02:09]} 22. Qd2
{[%clk 0:01:59.9]} 22... Qd3 {[%clk 0:02:07.5]} 23. Qxd3 {[%clk 0:01:46.5]}
23... exd3 {[%clk 0:02:08.4]} 24. Kf2 {[%clk 0:01:45.1]} 24... Re8 {[%clk
0:02:07.1]} 25. Rfe1 {[%clk 0:01:44.1]} 25... d2 {[%clk 0:02:07.4]} 26. Re2
{[%clk 0:01:44.2]} 26... Ba6 {[%clk 0:02:07.6]} 0-1

[Event "Late-Titled-Tuesday-Blitz-June-04-2024"]
[Site "Chess.com"]
[Date "2024.06.04"]
[Round "5"]
[White "nihalsarin"]
[Black "topce"]
[Result "1-0"]
[WhiteElo "3231"]
[BlackElo "2476"]
[TimeControl "180+1"]
[EndTime "14:51:32 PDT"]
[Termination "nihalsarin won by resignation"]

1. e4 {[%clk 0:03:00.9]} 1... c5 {[%clk 0:02:59.8]} 2. Nc3 {[%clk 0:03:01.8]}
2... Nc6 {[%clk 0:02:59.5]} 3. Nf3 {[%clk 0:03:02.7]} 3... e5 {[%clk 0:02:51.4]}
4. Bb5 {[%clk 0:03:03]} 4... a6 {[%clk 0:02:49.2]} 5. Bxc6 {[%clk 0:03:03]} 5...
dxc6 {[%clk 0:02:50.1]} 6. Nxe5 {[%clk 0:03:03.9]} 6... Qe7 {[%clk 0:02:45.6]}
7. Nf3 {[%clk 0:03:04.8]} 7... c4 {[%clk 0:02:44.3]} 8. O-O {[%clk 0:03:05.7]}
8... b5 {[%clk 0:02:43.9]} 9. Re1 {[%clk 0:03:06.6]} 9... Bb7 {[%clk 0:02:42.9]}
10. d4 {[%clk 0:03:06.8]} 10... cxd3 {[%clk 0:02:42.7]} 11. cxd3 {[%clk
0:03:07.4]} 11... O-O-O {[%clk 0:02:42.3]} 12. a4 {[%clk 0:03:08.1]} 12... b4
{[%clk 0:02:39.5]} 13. Ne2 {[%clk 0:03:08.5]} 13... c5 {[%clk 0:02:39.1]} 14.
Qc2 {[%clk 0:03:08.9]} 14... Kb8 {[%clk 0:02:38.6]} 15. Nf4 {[%clk 0:03:09.5]}
15... Nf6 {[%clk 0:02:37.2]} 16. Be3 {[%clk 0:03:10]} 16... Rc8 {[%clk 0:02:26]}
17. Rac1 {[%clk 0:03:10.3]} 17... c4 {[%clk 0:02:22.8]} 18. Nd5 {[%clk
0:03:09.6]} 18... Nxd5 {[%clk 0:02:10.8]} 19. exd5 {[%clk 0:02:50.5]} 19... b3
{[%clk 0:01:59.3]} 20. Bf4+ {[%clk 0:02:50.2]} 20... Ka8 {[%clk 0:01:58.5]} 21.
Qc3 {[%clk 0:02:50.5]} 21... Qb4 {[%clk 0:01:53]} 22. dxc4 {[%clk 0:02:50.4]}
22... Qxc3 {[%clk 0:01:51.6]} 23. bxc3 {[%clk 0:02:50.8]} 23... Bc5 {[%clk
0:01:38.8]} 24. Nd2 {[%clk 0:02:50.4]} 24... b2 {[%clk 0:01:37.7]} 25. Rb1
{[%clk 0:02:50.7]} 25... Rhe8 {[%clk 0:01:36.8]} 26. Rxe8 {[%clk 0:02:50.2]}
26... Rxe8 {[%clk 0:01:36.5]} 27. Kf1 {[%clk 0:02:50.3]} 27... Ba3 {[%clk
0:01:33.6]} 28. Be3 {[%clk 0:02:51]} 28... Rc8 {[%clk 0:01:31.9]} 29. Ke2 {[%clk
0:02:50.7]} 29... a5 {[%clk 0:01:32.1]} 30. Kd3 {[%clk 0:02:50.7]} 30... Ba6
{[%clk 0:01:31.4]} 31. Kc2 {[%clk 0:02:51.3]} 31... Bxc4 {[%clk 0:01:28.2]} 32.
Nxc4 {[%clk 0:02:51.5]} 32... Rxc4 {[%clk 0:01:26.6]} 33. Kb3 {[%clk 0:02:52.2]}
33... Rb4+ {[%clk 0:01:08.7]} 34. Kxa3 {[%clk 0:02:53.1]} 34... Rxa4+ {[%clk
0:01:06.9]} 35. Kxa4 {[%clk 0:02:53.5]} 35... f5 {[%clk 0:01:04.3]} 36. Rxb2
{[%clk 0:02:54.4]} 36... f4 {[%clk 0:01:03.6]} 37. d6 {[%clk 0:02:55.3]} 37...
fxe3 {[%clk 0:01:03.2]} 38. d7 {[%clk 0:02:56]} 1-0

[Event "Late-Titled-Tuesday-Blitz-June-04-2024"]
[Site "Chess.com"]
[Date "2024.06.04"]
[Round "5"]
[White "StellarChess"]
[Black "Kimkibo"]
[Result "1-0"]
[WhiteElo "2533"]
[BlackElo "2341"]
[TimeControl "180+1"]
[EndTime "14:51:32 PDT"]
[Termination "StellarChess won by resignation"]

1. d4 {[%clk 0:03:00.9]} 1... d5 {[%clk 0:02:57.2]} 2. Nf3 {[%clk 0:02:59.6]}
2... Nf6 {[%clk 0:02:56.4]} 3. Nbd2 {[%clk 0:02:59.6]} 3... e6 {[%clk
0:02:55.3]} 4. e3 {[%clk 0:03:00.1]} 4... c5 {[%clk 0:02:53.7]} 5. Bd3 {[%clk
0:03:00.4]} 5... Nc6 {[%clk 0:02:52.6]} 6. c3 {[%clk 0:02:52.7]} 6... c4 {[%clk
0:02:46.5]} 7. Bc2 {[%clk 0:02:52.3]} 7... b5 {[%clk 0:02:45.9]} 8. e4 {[%clk
0:02:52.6]} 8... b4 {[%clk 0:02:42]} 9. e5 {[%clk 0:02:52.7]} 9... Nd7 {[%clk
0:02:39.8]} 10. Qe2 {[%clk 0:02:49.1]} 10... Qa5 {[%clk 0:02:35.4]} 11. Qe3
{[%clk 0:02:29.1]} 11... Nb6 {[%clk 0:01:44.5]} 12. O-O {[%clk 0:02:24.5]} 12...
Na4 {[%clk 0:01:42.7]} 13. Bxa4 {[%clk 0:02:18.9]} 13... Qxa4 {[%clk 0:01:43.6]}
14. Re1 {[%clk 0:02:12.1]} 14... Be7 {[%clk 0:01:38.1]} 15. Nf1 {[%clk 0:02:10]}
15... bxc3 {[%clk 0:01:34.9]} 16. bxc3 {[%clk 0:02:09.8]} 16... Rb8 {[%clk
0:01:33.8]} 17. Ng3 {[%clk 0:02:06]} 17... Qc2 {[%clk 0:01:26.2]} 18. Nh5 {[%clk
0:01:46.4]} 18... Qf5 {[%clk 0:01:24.3]} 19. Nxg7+ {[%clk 0:01:43.5]} 1-0

[Event "Late-Titled-Tuesday-Blitz-June-04-2024"]
[Site "Chess.com"]
[Date "2024.06.04"]
[Round "5"]
[White "FlemingA"]
[Black "hansen"]
[Result "0-1"]
[WhiteElo "2485"]
[BlackElo "3035"]
[TimeControl "180+1"]
[EndTime "14:51:34 PDT"]
[Termination "hansen won by resignation"]

1. e4 {[%clk 0:03:00.9]} 1... c5 {[%clk 0:03:00.3]} 2. Nf3 {[%clk 0:03:00.4]}
2... e6 {[%clk 0:03:01]} 3. Qe2 {[%clk 0:02:59.6]} 3... Nc6 {[%clk 0:03:00.6]}
4. g3 {[%clk 0:02:58.6]} 4... e5 {[%clk 0:03:01.2]} 5. c3 {[%clk 0:02:58.2]}
5... Nf6 {[%clk 0:03:01.2]} 6. Bg2 {[%clk 0:02:57.9]} 6... d6 {[%clk 0:03:01.7]}
7. O-O {[%clk 0:02:57.8]} 7... Be7 {[%clk 0:03:02.3]} 8. Rd1 {[%clk 0:02:53.3]}
8... O-O {[%clk 0:03:01]} 9. d4 {[%clk 0:02:53.7]} 9... cxd4 {[%clk 0:02:59.1]}
10. cxd4 {[%clk 0:02:54.6]} 10... Bg4 {[%clk 0:02:59.5]} 11. d5 {[%clk
0:02:43.4]} 11... Nd4 {[%clk 0:02:57.9]} 12. Qd3 {[%clk 0:02:29.4]} 12... Rc8
{[%clk 0:02:42]} 13. Nc3 {[%clk 0:02:16.9]} 13... Qb6 {[%clk 0:02:40.3]} 14. Rb1
{[%clk 0:02:03.9]} 14... Nd7 {[%clk 0:02:26.1]} 15. Ne2 {[%clk 0:01:07.8]} 15...
Nc5 {[%clk 0:02:21.5]} 16. Qe3 {[%clk 0:01:08.1]} 16... Nc2 {[%clk 0:02:21.7]}
17. Qd2 {[%clk 0:00:44.2]} 17... Nxe4 {[%clk 0:02:21.1]} 18. Qd3 {[%clk
0:00:44.7]} 18... Nxf2 {[%clk 0:02:16.4]} 0-1